bitfinex/quotes_ETHUSD_20250413
["timestamp","ask_amount","ask_price","bid_price","bid_amount"]
[1744553258846,6.35379,1573.9,1573.4,8.71401723]
[1744553259143,6.35407,1573.8,1573.4,8.650561]
[1744553259344,6.35407,1573.8,1573.4,15.005991]
[1744553259818,6.35407,1573.8,1573.4,15.005931]
[1744553260151,6.35486,1573.6,1573.3,10.2392]
[1744553260539,6.35405,1573.8,1573.4,6.41909272]
[1744553260741,6.35405,1573.8,1573.4,12.77452272]
[1744553261051,6.3532,1574.1,1573.4,0.06355272]
[1744553261052,6.35283,1574.1,1573.4,0.06355272]
[1744553261376,6.35343,1574.0,1573.6,6.35469]
[1744553261516,6.35343,1574.0,1573.6,7.625684]
[1744553261846,9.35283,1574.1,1573.4,6.35553]
[1744553262161,6.35419,1573.8,1573.4,6.3555]
[1744553262530,6.35419,1573.8,1573.4,6.41899072]
[1744553263252,6.35366,1573.9,1573.5,6.35506]
[1744553263423,16.6533,1574.2,1573.3,16.59513]
[1744553263424,6.35405,1573.8,1573.3,16.59513]
[1744553263628,6.35405,1573.8,1573.3,18.254643]
[1744553263831,12.70938,1573.7,1573.3,18.254643]
[1744553264235,6.35338,1574.0,1573.3,11.898713]
[1744553264424,10.3008,1574.2,1573.7,6.35434]
[1744553264425,12.70595,1574.1,1573.7,6.35434]
[1744553264757,6.35306,1574.1,1573.6,6.35485]
[1744553264955,12.70613,1574.1,1573.7,6.35428]
[1744553265131,12.70614,1574.1,1573.7,6.35428]
[1744553265554,6.35306,1574.1,1573.7,6.35428]
[1744553265756,6.35372,1573.9,1573.6,6.990245]
[1744553266147,12.70599,1574.1,1573.7,6.35429]
[1744553266862,6.35333,1574.0,1573.6,6.990155]
[1744553267365,6.35333,1574.0,1573.6,13.344825]
[1744553267862,6.3542,1573.8,1573.5,3.0]
[1744553268162,6.3542,1573.8,1573.5,9.35519]
[1744553268566,12.7079,1573.9,1573.5,9.35519]
[1744553268857,12.70782,1573.9,1573.5,9.41863308]
[1744553269069,6.35383,1573.9,1573.5,15.77369308]
[1744553269269,12.70769,1573.9,1573.5,10.93242931]
[1744553269443,12.70769,1573.9,1573.5,10.99597238]
[1744553269641,6.35283,1574.1,1573.5,4.64091238]
[1744553269967,6.35543,1573.5,1573.3,9.071]
[1744553270127,6.35489,1573.6,1573.3,15.42704]
[1744553270332,1.1706,1573.8,1573.4,6.35551]
[1744553270333,6.35419,1573.8,1573.4,6.35551]
[1744553270757,12.70849,1573.8,1573.4,6.35548]
[1744553270957,6.35419,1573.8,1573.4,8.5337]
[1744553271161,6.35405,1573.8,1573.4,6.35562]
[1744553271362,12.70831,1573.8,1573.4,12.77461791]
[1744553271561,12.70831,1573.8,1573.4,6.41899791]
[1744553271751,6.35504,1573.6,1573.3,9.071]
[1744553271950,6.35504,1573.6,1573.3,11.249374]
[1744553272136,12.71013,1573.6,1573.3,11.249374]
[1744553272558,6.35504,1573.6,1573.3,11.249374]
[1744553272774,12.71012,1573.6,1573.3,11.249374]
[1744553273078,6.35562,1573.5,1573.3,9.071]
[1744553273275,6.3549,1573.6,1573.3,9.071]
[1744553273479,12.71079,1573.5,1573.3,9.071]
[1744553273775,12.7108,1573.5,1573.3,9.071]
[1744553274141,6.35529,1573.5,1573.3,9.071]
[1744553275377,12.71078,1573.5,1573.3,9.071]
[1744553276050,12.70997,1573.6,1573.3,9.071]
[1744553276257,6.35529,1573.5,1573.3,9.071]
[1744553276583,6.35548,1573.5,1573.3,9.071]
[1744553277158,6.35489,1573.6,1573.3,9.071]
[1744553277481,12.70841,1573.8,1573.4,7.68556405]
[1744553277671,6.35458,1573.7,1573.4,1.2665]
[1744553278385,6.35488,1573.6,1573.4,1.2665]
[1744553278582,6.35544,1573.5,1573.3,9.071]
[1744553279296,6.35566,1573.4,1573.3,9.071]
[1744553279656,6.35544,1573.5,1573.3,9.071]
[1744553279992,6.35566,1573.4,1573.3,9.071]
[1744553281186,6.35566,1573.4,1573.3,9.30101655]
[1744553281499,6.35566,1573.4,1573.3,0.23001655]
[1744553282093,6.35638,1573.3,1572.9,6.35749]
[1744553282393,6.35638,1573.3,1572.8,55.6968]
[1744553282394,6.35645,1573.3,1572.8,55.6968]
[1744553282583,12.71155,1573.4,1573.0,6.35723]
[1744553282897,12.71155,1573.4,1572.8,55.6968]
[1744553282898,6.35566,1573.4,1572.8,62.05484]
[1744553283095,6.35611,1573.3,1572.8,61.8417596]
[1744553283271,6.35611,1573.3,1572.9,6.35751]
[1744553283272,12.71241,1573.3,1572.9,6.35751]
[1744553283474,6.35668,1573.2,1572.9,0.23005785]
[1744553283672,12.7123,1573.3,1572.9,0.23005785]
[1744553283898,12.71237,1573.3,1572.9,6.58749785]
[1744553284201,6.35609,1573.3,1573.0,0.29362202]
[1744553284506,6.35609,1573.3,1573.0,0.23005785]
[1744553284663,6.35526,1573.5,1573.1,6.42004414]
[1744553284853,6.35526,1573.5,1573.2,1.47565785]
[1744553285059,6.35458,1573.7,1573.4,6.35565]
[1744553285589,6.35504,1573.6,1573.2,8.62162805]
[1744553285900,1.1857,1573.9,1573.3,0.23005785]
[1744553286065,6.3542,1573.8,1573.4,6.35549]
[1744553286361,12.7086,1573.8,1573.4,6.35549]
[1744553286558,9.8404217,1574.1,1573.4,1.29415778]
[1744553286559,1.1857,1574.1,1573.4,1.29415778]
[1744553286758,6.35337,1574.0,1573.7,1.2456]
[1744553286972,6.35337,1574.0,1573.8,0.23005785]
[1744553287175,6.35286,1574.1,1573.8,0.23005785]
[1744553287705,12.70595,1574.1,1573.8,0.23005785]
[1744553287903,6.35329,1574.0,1573.8,0.23005785]
[1744553288397,6.35342,1574.0,1573.8,0.23005785]
[1744553288597,12.70696,1574.0,1573.7,1.2456]
[1744553289907,6.35342,1574.0,1573.8,0.22978625]
[1744553290065,7.53773,1574.3,1573.8,6.58366625]
[1744553290066,6.35259,1574.2,1573.8,6.58366625]
[1744553290398,0.05,1574.4,1574.2,6.35222]
[1744553290599,0.05,1574.4,1574.2,1.1588]
[1744553290924,6.35209,1574.3,1573.9,7.51226]
[1744553291204,6.35209,1574.3,1573.9,14.616966]
[1744553291584,6.35209,1574.3,1574.0,0.22960725]
[1744553291785,6.35243,1574.2,1574.0,0.22960725]
[1744553292281,6.40166,1574.4,1574.0,6.58283725]
[1744553292481,6.40166,1574.4,1573.9,1.910026]
[1744553292482,0.05,1574.4,1574.1,0.22960725]
[1744553292681,12.70454,1574.3,1574.1,0.22960725]
[1744553293284,6.35243,1574.2,1574.1,0.22960725]
[1744553293880,6.4017,1574.4,1574.0,6.416499]
[1744553294101,6.4017,1574.4,1574.1,0.6416499]
[1744553294393,0.05,1574.4,1573.9,7.5124]
[1744553294694,6.35262,1574.2,1573.8,9.35402]
[1744553295097,12.70531,1574.2,1573.9,0.22942755]
[1744553295323,6.40201,1574.4,1574.0,6.3531]
[1744553295497,6.4019,1574.4,1574.0,6.3531]
[1744553296029,6.35207,1574.3,1574.0,6.3531]
[1744553296235,6.35207,1574.3,1574.0,7.623759]
[1744553296605,6.4019,1574.4,1574.0,7.623669]
[1744553296807,12.75377,1574.4,1574.0,7.623669]
[1744553297335,6.3521,1574.3,1574.0,7.623789]
[1744553298337,6.40187,1574.4,1573.8,3.0]
[1744553298338,0.05,1574.4,1573.8,9.35399]
[1744553298519,6.35206,1574.3,1573.8,9.35381]
[1744553298704,6.35225,1574.3,1573.9,6.41678896]
[1744553299191,6.35248,1574.2,1573.9,6.35326]
[1744553300209,6.35225,1574.3,1573.9,7.288586]
[1744553300403,12.75354,1574.4,1574.0,6.41659883]
[1744553300622,6.40166,1574.4,1574.0,12.70607]
[1744553300823,6.40166,1574.4,1574.0,6.353]
[1744553301200,6.40166,1574.4,1574.1,1.2165]
[1744553301628,6.40166,1574.4,1574.0,6.353]
[1744553301802,6.3522,1574.3,1573.9,14.858886]
[1744553302238,12.75353,1574.4,1574.0,6.35317]
[1744553302425,12.75353,1574.4,1574.0,7.8390586]
[1744553302740,6.35208,1574.3,1574.0,7.8390586]
[1744553303141,0.05,1574.4,1574.1,6.3528]
[1744553303439,0.05,1574.4,1574.2,0.63528]
[1744553303640,0.05,1574.4,1574.1,6.3528]
[1744553303800,0.05,1574.4,1574.1,12.70542]
[1744553304340,0.05,1574.4,1574.1,6.35262]
[1744553304541,6.40183,1574.4,1574.0,6.35317]
[1744553304738,6.40183,1574.4,1574.0,6.35303]
[1744553304937,0.05,1574.4,1574.1,12.70538]
[1744553305251,0.05,1574.4,1574.1,6.35269]
[1744553305440,0.05,1574.4,1574.2,6.35223]
[1744553305642,6.40188,1574.4,1573.9,1.2165]
[1744553305944,6.40188,1574.4,1574.0,6.35314]
[1744553306117,6.40188,1574.4,1574.1,6.35268]
[1744553307263,0.05,1574.4,1574.2,6.35227]
[1744553307619,0.05,1574.4,1574.1,6.35262]
[1744553308058,0.05,1574.4,1574.1,6.3527]
[1744553308360,0.05,1574.4,1574.1,12.70539]
[1744553308560,0.05,1574.4,1574.0,13.463224]
[1744553308857,12.75366,1574.4,1574.0,7.110024]
[1744553309024,6.40175,1574.4,1574.0,13.463064]
[1744553309223,6.40175,1574.4,1574.1,6.35283]
[1744553309651,0.05,1574.4,1574.1,6.35265]
[1744553309967,0.05,1574.4,1574.2,6.987565]
[1744553310426,0.05,1574.4,1574.2,13.339815]
[1744553310855,0.05,1574.4,1574.2,6.987515]
[1744553311364,0.05,1574.4,1574.2,7.0510134]
[1744553311579,0.05,1574.4,1574.3,6.35202]
[1744553311867,0.05,1574.4,1574.3,8.87012334]
[1744553313347,0.05,1574.4,1574.3,7.52982]
[1744553313650,0.05,1574.4,1574.3,7.75927403]
[1744553314397,0.05,1574.4,1574.3,1.40725403]
[1744553314753,1.2377,1574.4,1574.3,0.22945403]
[1744553314945,7.58932,1574.4,1574.3,0.22945403]
[1744553315667,6.35229,1574.3,1573.9,6.35344]
[1744553315868,6.35247,1574.2,1573.9,6.35344]
[1744553316178,12.70524,1574.2,1573.8,7.51006]
[1744553316346,6.35247,1574.2,1573.8,13.86393]
[1744553316553,12.70511,1574.2,1573.9,0.23001658]
[1744553316756,6.35287,1574.1,1573.9,0.58616287]
[1744553317360,6.35324,1574.0,1573.9,0.35614629]
[1744553317681,6.35324,1574.0,1573.7,9.11553813]
[1744553317858,6.35324,1574.0,1573.7,11.01464281]
[1744553318590,6.35324,1574.0,1573.8,0.586293]
[1744553318792,6.11,1574.3,1573.8,0.586293]
[1744553318997,7.58952,1574.4,1574.1,6.35274]
[1744553319197,7.58952,1574.4,1574.1,6.988014]
[1744553319403,0.05,1574.4,1574.1,6.987934]
[1744553319587,0.05,1574.4,1574.2,6.35226]
[1744553319787,0.05,1574.4,1574.2,0.23007415]
[1744553320204,0.05,1574.4,1574.2,12.9980805]
[1744553320511,0.05,1574.4,1574.3,1.29980805]
[1744553320678,0.05,1574.4,1574.3,1.5298822]
[1744553321909,0.05,1574.4,1574.3,0.23007415]
[1744553322602,0.05,1574.4,1574.3,6.58209415]
[1744553322789,0.05,1574.4,1574.3,0.23007415]
[1744553324874,7.61472,1574.4,1574.3,0.23007415]
[1744553325082,6.35421,1573.8,1573.6,10.2895]
[1744553325387,6.35212,1574.3,1573.6,10.2895]
[1744553325388,6.35369,1573.9,1573.7,0.3562849]
[1744553325708,12.70756,1573.9,1573.7,0.3562849]
[1744553326009,6.35369,1573.9,1573.6,9.03]
[1744553326218,6.35523,1573.6,1573.2,22.14005126]
[1744553326428,6.35565,1573.5,1573.3,0.35620667]
[1744553326716,6.35566,1573.4,1573.3,0.35620667]
[1744553327472,6.35566,1573.4,1573.2,5.49510126]
[1744553327874,6.35606,1573.3,1573.2,5.49510126]
[1744553328906,7.56916,1573.3,1573.2,5.49510126]
[1744553330424,13.9255,1573.3,1572.9,0.06356719]
[1744553330716,6.35649,1573.2,1572.9,1.40390072]
[1744553332327,12.71325,1573.2,1572.8,6.35787]
[1744553333220,7.56917,1573.3,1572.9,12.77864994]
[1744553333411,7.56917,1573.3,1572.9,6.42110994]
[1744553333722,13.92548,1573.3,1572.9,6.42110994]
[1744553333899,7.56917,1573.3,1572.9,6.42110994]
[1744553334414,13.92552,1573.3,1572.9,6.35754]
[1744553334599,6.35649,1573.2,1572.9,1.39935499]
[1744553334925,6.35649,1573.2,1572.9,7.75699499]
[1744553335102,7.56919,1573.3,1572.9,14.17810331]
[1744553335295,7.56919,1573.3,1572.9,14.11453499]
[1744553335506,6.35609,1573.3,1573.0,1.4114535]
[1744553335813,6.35609,1573.3,1573.0,7.7687235]
[1744553336287,12.71239,1573.3,1572.9,6.35754]
[1744553336593,1.1897,1573.5,1573.0,6.35688]
[1744553336594,6.35567,1573.4,1573.0,6.35688]
[1744553336804,6.3563,1573.3,1572.9,6.90749]
[1744553336986,6.35571,1573.4,1573.0,6.35713]
[1744553337189,6.35533,1573.5,1573.0,1.1641]
[1744553337487,6.35488,1573.6,1573.2,6.35626]
[1744553337718,7.5442,1573.7,1573.3,12.7756339]
[1744553338119,6.3545,1573.7,1573.3,12.71208]
[1744553338517,6.35409,1573.8,1573.4,1.1641]
[1744553338729,6.35366,1573.9,1573.5,6.418771]
[1744553339026,6.68271779,1574.0,1573.5,6.3552]
[1744553339189,6.35445,1573.7,1573.4,4.1641]
[1744553339389,6.35408,1573.8,1573.4,10.51954]
[1744553339618,6.35378,1573.9,1573.5,6.3552]
[1744553339821,6.35415,1573.8,1573.5,6.3552]
[1744553340028,6.35415,1573.8,1573.4,10.51965]
[1744553340230,6.35415,1573.8,1573.5,7.407175]
[1744553340402,6.35329,1574.0,1573.6,6.41824905]
[1744553340604,6.35329,1574.0,1573.6,6.35471]
[1744553340605,12.7068,1574.0,1573.6,6.35471]
[1744553340810,6.35329,1574.0,1573.6,12.70939]
[1744553341027,7.54259,1574.1,1573.7,6.35432]
[1744553341208,7.54259,1574.1,1573.7,7.62522]
[1744553341501,6.35289,1574.1,1573.7,7.62521]
[1744553341735,6.35283,1574.1,1573.5,1.051965]
[1744553341889,6.35485,1573.6,1573.3,3.0]
[1744553342097,1.1946,1574.0,1573.3,3.0]
[1744553342313,6.35407,1573.8,1573.6,3.0]
[1744553342496,6.35399,1573.9,1573.6,6.35483]
[1744553342817,6.35399,1573.9,1573.6,7.29666727]
[1744553343007,6.35293,1574.1,1573.7,6.35443]
[1744553343210,12.70603,1574.1,1573.7,6.35443]
[1744553343429,12.70603,1574.1,1573.7,6.35442]
[1744553343430,6.35302,1574.1,1573.7,6.35442]
[1744553343635,12.70612,1574.1,1573.7,6.35442]
[1744553343820,12.70612,1574.1,1573.7,7.84019573]
[1744553344420,6.35302,1574.1,1573.7,7.84019573]
[1744553344740,1.1946,1574.2,1573.6,5.14853727]
[1744553344912,6.35366,1573.9,1573.6,1.2067]
[1744553346037,7.54732,1574.2,1573.6,1.27023791]
[1744553346038,6.35284,1574.1,1573.6,1.27023791]
[1744553346200,6.35284,1574.1,1573.7,6.3542]
[1744553346536,6.35284,1574.1,1573.7,12.70862]
[1744553347210,6.35284,1574.1,1573.8,6.35398]
[1744553347411,6.35284,1574.1,1573.8,7.624798]
[1744553347635,12.70591,1574.1,1573.8,1.270818]
[1744553347837,6.35383,1573.9,1573.6,1.2067]
[1744553347995,6.35421,1573.8,1573.5,6.35522]
[1744553348437,6.35421,1573.8,1573.4,10.56992]
[1744553348643,6.35421,1573.8,1573.4,16.92541]
[1744553349531,6.35421,1573.8,1573.5,6.3552]
[1744553349845,6.35421,1573.8,1573.6,0.06354082]
[1744553350139,12.70747,1573.9,1573.6,0.06354082]
[1744553350383,6.35409,1573.8,1573.5,1.692509]
[1744553350726,6.35409,1573.8,1573.5,1.75605024]
[1744553351355,6.35409,1573.8,1573.5,8.11114024]
[1744553351508,6.35409,1573.8,1573.5,1.692509]
[1744553351509,12.70838,1573.8,1573.5,1.692509]
[1744553351719,6.35464,1573.7,1573.4,4.2144]
[1744553352019,6.35486,1573.6,1573.0,62.11613]
[1744553352254,12.71212,1573.4,1573.0,62.11613]
[1744553352432,6.35606,1573.4,1573.1,3.0]
[1744553352633,6.35528,1573.5,1573.2,0.06355785]
[1744553352954,6.35528,1573.5,1573.2,6.41993785]
[1744553353452,12.7108,1573.5,1573.2,0.06355785]
[1744553353654,12.7108,1573.5,1573.1,12.5017896]
[1744553353835,6.35528,1573.5,1573.1,12.56517745]
[1744553354654,6.35611,1573.3,1573.1,6.1449596]
[1744553354829,6.35592,1573.4,1573.1,3.0]
[1744553355369,6.35592,1573.4,1573.1,0.06355787]
[1744553355570,6.35459,1573.7,1573.1,3.06355787]
[1744553355731,6.35409,1573.8,1573.5,6.35525]
[1744553355935,12.70837,1573.8,1573.4,7.55192]
[1744553356131,6.35409,1573.8,1573.4,9.843611]
[1744553356453,6.35409,1573.8,1573.4,16.199091]
[1744553356659,6.35368,1573.9,1573.5,0.06354416]
[1744553356859,7.57497,1574.0,1573.6,6.35456]
[1744553357062,1.2217,1574.0,1573.7,9.35429]
[1744553357751,6.35379,1573.9,1573.7,3.0]
[1744553357953,7.57498,1574.0,1573.7,3.0]
[1744553358173,6.35328,1574.0,1573.7,4.570923]
[1744553358378,7.5742,1574.2,1573.8,7.55021]
[1744553358583,7.5742,1574.2,1573.8,13.90411]
[1744553358947,6.3525,1574.2,1573.8,13.90411]
[1744553359169,7.62338,1574.4,1574.0,6.35319]
[1744553359489,0.05,1574.4,1574.1,8.184409]
[1744553360053,0.05,1574.4,1574.1,8.184309]
[1744553360285,0.05,1574.4,1574.1,6.35262]
[1744553360469,0.05,1574.4,1574.3,6.35202]
[1744553360678,0.05,1574.4,1574.3,7.61122]
[1744553363858,0.05,1574.4,1574.3,11.16122]
[1744553364056,0.05,1574.4,1574.3,20.23172157]
[1744553364282,0.05,1574.4,1574.3,23.18799234]
[1744553366764,0.05,1574.4,1574.3,22.63799234]
[1744553367166,0.05,1574.4,1574.3,23.18799234]
[1744553367381,0.05,1574.4,1574.3,23.15039234]
[1744553367770,1.1694,1575.3,1575.0,6.34906]
[1744553367968,1.1694,1575.3,1575.1,0.634906]
[1744553368589,6.3484,1575.2,1575.1,0.634906]
[1744553368790,6.3484,1575.2,1574.9,6.34955]
[1744553369096,0.05,1575.4,1574.9,0.06348711]
[1744553369318,0.05,1575.4,1575.2,6.34825]
[1744553369516,0.05,1575.4,1575.1,6.34873]
[1744553369715,0.05,1575.4,1575.2,6.34834]
[1744553369895,0.05,1575.4,1575.3,0.06347223]
[1744553370096,0.05,1575.4,1575.3,6.41146223]
[1744553370678,0.05,1575.4,1575.3,8.976]
[1744553370883,0.05,1575.4,1575.3,15.32399]
[1744553371221,0.05,1575.4,1575.3,20.10639]
[1744553371222,0.18077735,1575.4,1575.3,20.10639]
[1744553371439,0.05,1575.4,1575.3,23.12993166]
[1744553371940,0.22393153,1575.4,1575.3,23.12993166]
[1744553372091,0.05,1575.4,1575.3,23.12993166]
[1744553372291,0.22393153,1575.4,1575.3,23.12993166]
[1744553373091,0.22393153,1575.4,1575.3,22.57993166]
[1744553373092,0.05,1575.4,1575.3,22.57993166]
[1744553373298,0.05,1575.4,1575.3,19.55639]
[1744553373817,0.22748758,1575.4,1575.3,16.55639]
[1744553374478,0.22748758,1575.4,1575.3,8.976]
[1744553375596,0.22748758,1575.4,1575.3,15.38745899]
[1744553375792,0.22748758,1575.4,1575.3,15.32399]
[1744553375993,0.22748758,1575.4,1575.3,8.976]
[1744553377209,0.22748758,1575.4,1575.3,16.22159]
[1744553377395,0.22748758,1575.4,1575.3,16.77159]
[1744553377601,0.22748758,1575.4,1575.3,9.8736]
[1744553377834,0.22748758,1575.4,1575.3,16.22159]
[1744553378424,0.22748758,1575.4,1575.3,19.22159]
[1744553378823,0.05,1575.4,1575.3,19.22159]
[1744553379023,0.05,1575.4,1575.3,12.8736]
[1744553379322,0.05,1575.4,1575.3,19.83505863]
[1744553379526,0.05,1575.4,1575.3,21.05299]
[1744553382635,0.05,1575.4,1575.3,20.49899]
[1744553383453,0.05,1575.4,1575.3,21.04899]
[1744553386066,0.05,1575.4,1575.3,0.8976]
[1744553386238,0.05,1575.4,1575.2,9.34837]
[1744553386961,6.3482,1575.3,1575.0,15.32007]
[1744553387144,6.3482,1575.3,1575.1,3.0]
[1744553387469,6.3484,1575.2,1575.1,3.0]
[1744553387763,6.52703084,1575.2,1575.1,3.0]
[1744553389284,6.52703084,1575.2,1575.0,8.971]
[1744553389489,7.6202,1575.1,1575.0,8.971]
[1744553389990,7.7931147,1575.1,1575.0,8.971]
[1744553390482,1.4443147,1575.1,1575.0,8.971]
[1744553391358,7.7931147,1575.1,1575.0,8.971]
[1744553392867,0.1729147,1575.1,1575.0,15.3202]
[1744553393072,0.1729147,1575.1,1575.0,21.4651596]
[1744553393266,0.05,1575.4,1575.1,6.34862]
[1744553393567,0.05,1575.4,1575.1,6.34859]
[1744553393896,0.05,1575.4,1575.2,6.34832]
[1744553394597,0.05,1575.4,1575.2,6.41179514]
[1744553394902,0.05,1575.4,1575.3,0.64117951]
[1744553395066,0.05,1575.4,1575.3,6.98916951]
[1744553395797,0.05,1575.4,1575.3,0.64117951]
[1744553397617,0.05,1575.4,1575.3,6.98916951]
[1744553397917,0.05,1575.4,1575.3,7.53916951]
[1744553398679,0.05,1575.4,1575.3,6.98916951]
[1744553398920,0.05,1575.4,1575.3,0.64117951]
[1744553399221,6.39759,1575.4,1575.2,3.0]
[1744553399992,0.05,1575.4,1575.2,3.0]
[1744553400326,0.05,1575.4,1575.2,9.4114941]
[1744553400623,0.05,1575.4,1575.2,3.0]
[1744553400825,0.05,1575.4,1575.2,0.934873]
[1744553401030,0.05,1575.4,1575.3,6.34799]
[1744553401186,0.05,1575.4,1575.3,14.22957487]
[1744553401391,0.19360772,1575.4,1575.3,14.22957487]
[1744553401586,0.05,1575.4,1575.3,14.22957487]
[1744553401791,0.05,1575.4,1575.3,16.38084266]
[1744553402300,7.62123,1576.3,1575.9,6.34536]
[1744553402629,0.14360772,1576.2,1576.0,6.34477]
[1744553402934,0.14360772,1576.2,1575.8,3.0]
[1744553403235,0.14360772,1576.2,1576.0,6.34498]
[1744553403439,0.14360772,1576.2,1576.1,0.634498]
[1744553403791,0.05,1576.4,1576.1,6.979268]
[1744553403986,0.14360772,1576.2,1576.1,6.979268]
[1744553404328,0.14360772,1576.2,1576.1,16.323838]
[1744553404489,0.05,1576.4,1576.1,16.323838]
[1744553404687,0.14360772,1576.3,1576.2,7.9765938]
[1744553405339,0.14360772,1576.3,1576.2,10.9767538]
[1744553405632,0.3892929,1576.6,1576.4,6.34341]
[1744553405801,0.3892929,1576.6,1576.4,6.34334]
[1744553406129,0.13164105,1576.5,1576.4,3.0]
[1744553406333,0.13164105,1576.5,1576.4,10.277934]
[1744553406487,0.13164105,1576.5,1576.4,3.934374]
[1744553406690,0.13164105,1576.5,1576.4,10.34135836]
[1744553407232,0.13164105,1576.5,1576.4,12.007934]
[1744553407621,0.13164105,1576.5,1576.4,12.07135339]
[1744553407798,0.13164105,1576.5,1576.4,12.007934]
[1744553407993,0.13164105,1576.5,1576.4,3.934374]
[1744553408306,0.3892929,1576.6,1576.4,9.40698225]
[1744553408506,0.3892929,1576.6,1576.5,6.34316]
[1744553408706,0.3892929,1576.6,1576.5,9.95657864]
[1744553408895,0.3892929,1576.6,1576.5,11.07316]
[1744553409297,0.3892929,1576.6,1576.5,10.52316]
[1744553409506,0.3892929,1576.6,1576.5,12.52380049]
[1744553409712,0.3892929,1576.6,1576.5,13.07380049]
[1744553410241,0.3892929,1576.6,1576.5,5.00064049]
[1744553410548,0.3892929,1576.6,1576.3,4.2203]
[1744553410836,0.3892929,1576.6,1576.3,9.34382]
[1744553411332,0.05,1577.4,1576.4,1.2203]
[1744553411533,0.05,1577.4,1577.3,14.24992487]
[1744553411694,0.05,1577.4,1577.3,23.19092487]
[1744553412512,0.05,1577.4,1577.3,20.05124]
[1744553412709,0.05,1577.4,1577.3,22.690382]
[1744553413246,0.20121666,1577.4,1577.3,23.1563292]
[1744553413410,0.05,1577.4,1577.3,23.1563292]
[1744553413614,0.20121666,1577.4,1577.3,23.1563292]
[1744553413811,0.05,1577.4,1577.3,26.29601407]
[1744553414750,0.20121666,1577.4,1577.3,26.29601407]
[1744553414939,0.05,1577.4,1577.3,26.29601407]
[1744553416871,0.05,1577.4,1577.3,21.3860292]
[1744553417367,0.05,1577.4,1577.3,25.07571407]
[1744553417569,0.21607549,1577.4,1577.3,25.07571407]
[1744553418425,0.21607549,1577.4,1577.3,80.64521407]
[1744553418668,0.05,1577.4,1577.3,80.64521407]
[1744553420282,1.6052929,1578.1,1578.0,6.33713]
[1744553420470,0.3892929,1578.1,1577.9,15.27236]
[1744553420676,0.55536839,1578.1,1577.9,15.27236]
[1744553420844,0.3892929,1578.1,1577.9,6.33736]
[1744553421048,0.3892929,1578.1,1577.9,12.67469]
[1744553421251,0.16607549,1578.0,1577.9,26.426159]
[1744553421443,0.3892929,1578.1,1578.0,6.33713]
[1744553421990,13.0633629,1578.1,1577.9,1.267469]
[1744553422189,0.16607549,1578.0,1577.9,6.40071806]
[1744553422347,1.6052929,1578.1,1577.9,6.40071806]
[1744553422548,1.6052929,1578.1,1577.9,6.33735]
[1744553422846,0.16607549,1578.0,1577.8,15.2719]
[1744553423049,0.16607549,1578.0,1577.9,6.95089553]
[1744553423285,0.3892929,1578.1,1578.0,6.33713]
[1744553423645,0.55536839,1578.1,1578.0,6.33713]
[1744553423853,0.55536839,1578.1,1578.0,6.88713]
[1744553424562,0.55536839,1578.1,1578.0,9.88713]
[1744553425291,0.55536839,1578.1,1578.0,11.12703]
[1744553425495,1.2557,1579.3,1578.7,6.33415]
[1744553425797,6.33429,1578.8,1578.6,8.933]
[1744553426099,6.33363,1578.9,1578.6,8.933]
[1744553426253,0.15158282,1578.7,1578.6,3.0]
[1744553426449,6.33363,1578.9,1578.6,3.0]
[1744553426646,6.33512,1578.5,1578.2,54.366]
[1744553426845,7.59043,1578.6,1578.2,60.70231]
[1744553426846,1.2557,1578.6,1578.2,60.70231]
[1744553427143,1.2557,1578.6,1578.3,6.88574]
[1744553427348,0.15158282,1578.5,1578.2,60.70208]
[1744553427545,0.15158282,1578.5,1578.3,0.55]
[1744553427786,1.2557,1578.6,1578.3,13.010928]
[1744553427989,0.15158282,1578.5,1578.3,6.675208]
[1744553428188,7.58925,1578.9,1578.5,0.55]
[1744553428359,6.48565282,1578.8,1578.5,0.55]
[1744553428560,0.15158282,1578.8,1578.4,7.57541]
[1744553428764,6.33412,1578.8,1578.4,3.0]
[1744553428980,0.15158282,1578.7,1578.4,3.0]
[1744553429175,0.15158282,1578.7,1578.5,0.06334128]
[1744553429492,6.33393,1578.8,1578.4,15.67077]
[1744553429873,0.15158282,1578.7,1578.5,7.51051]
[1744553430077,0.15158282,1578.7,1578.5,9.195089]
[1744553430279,7.58945,1578.9,1578.6,0.06333775]
[1744553430478,1.2557,1578.9,1578.7,6.33432]
[1744553430681,1.2557,1578.9,1578.5,17.354619]
[1744553430861,1.2557,1578.9,1578.6,6.39788336]
[1744553431059,1.2557,1578.9,1578.6,6.33455]
[1744553431566,7.58942,1578.9,1578.5,11.019519]
[1744553431768,7.58942,1578.9,1578.5,17.354429]
[1744553432157,7.58942,1578.9,1578.4,6.81678739]
[1744553432357,6.33408,1578.8,1578.4,21.57463]
[1744553432571,13.92311,1578.9,1578.5,6.39832918]
[1744553433059,0.34896847,1578.8,1578.5,6.39832918]
[1744553433259,0.34896847,1578.8,1578.6,6.33465]
[1744553433460,6.33332,1579.0,1578.6,6.33449]
[1744553433687,0.34896847,1578.7,1578.6,6.33449]
[1744553433893,12.66669,1579.0,1578.6,6.33449]
[1744553434098,7.54878,1579.1,1578.7,6.39746734]
[1744553434392,13.88175,1579.1,1578.7,6.33413]
[1744553434584,0.34884171,1579.0,1578.8,0.06333134]
[1744553434782,0.34884171,1579.0,1578.9,6.33352]
[1744553434983,0.05,1579.4,1579.1,6.33251]
[1744553435168,0.05,1579.4,1579.2,3.0]
[1744553435499,0.05,1579.4,1579.2,6.33214]